[Event "Titled Tuesday Blitz December 14 2021"]
[White "Baskin, Robert"]
[Black "Neiksans, Arturs"]
[WhiteFideId "24662402"]
[BlackFideId "11601388"]
[WhiteElo "2488"]
[BlackElo "2447"]
[Result "0-1"]
[Round "05"]
[TimeControl "180+1"]
[Date "2021.12.15"]
[WhiteClock "0:00:02"]
[BlackClock "0:00:15"]

1. e4 {[%clk 0:02:59]}  c5 {[%clk 0:02:58]} 2. Nf3 {[%clk 0:02:59]}  e6 {[%clk 0:02:58]} 3. d4 {[%clk 0:03:00]}  cxd4 {[%clk 0:02:59]} 4. Nxd4 {[%clk 0:03:01]}  a6 {[%clk 0:02:59]} 5. Nc3 {[%clk 0:02:59]}  Qc7 {[%clk 0:02:53]} 6. Bd3 {[%clk 0:02:59]}  Nf6 {[%clk 0:02:51]} 7. f4 {[%clk 0:02:59]}  Nc6 {[%clk 0:02:47]} 8. Nxc6 {[%clk 0:02:32]}  bxc6 {[%clk 0:02:46]} 9. e5 {[%clk 0:02:25]}  Nd5 {[%clk 0:02:45]} 10. Ne4 {[%clk 0:01:37]}  c5 {[%clk 0:02:44]} 11. c4 {[%clk 0:01:35]}  Nb4 {[%clk 0:02:44]} 12. Bb1 {[%clk 0:01:34]}  Bb7 {[%clk 0:02:43]} 13. O-O {[%clk 0:01:32]}  Be7 {[%clk 0:02:39]} 14. Be3 {[%clk 0:01:12]}  O-O {[%clk 0:02:01]} 15. Qh5 {[%clk 0:01:06]}  g6 {[%clk 0:01:56]} 16. Qh6 {[%clk 0:01:04]}  Bxe4 {[%clk 0:01:56]} 17. Bxe4 {[%clk 0:01:04]}  Rad8 {[%clk 0:01:49]} 18. Rf3 {[%clk 0:00:55]}  f5 {[%clk 0:01:43]} 19. exf6 {[%clk 0:00:51]}  Bxf6 {[%clk 0:01:44]} 20. Rh3 {[%clk 0:00:31]}  Rf7 {[%clk 0:01:44]} 21. Rf1 {[%clk 0:00:20]}  d5 {[%clk 0:01:43]} 22. Bb1 {[%clk 0:00:19]}  d4 {[%clk 0:01:29]} 23. Bc1 {[%clk 0:00:17]}  Rg7 {[%clk 0:01:21]} 24. a3 {[%clk 0:00:16]}  Nc6 {[%clk 0:01:22]} 25. Bd3 {[%clk 0:00:15]}  Ne7 {[%clk 0:01:22]} 26. g4 {[%clk 0:00:15]}  Rf7 {[%clk 0:01:18]} 27. Bd2 {[%clk 0:00:14]}  Rb8 {[%clk 0:01:13]} 28. Bc1 {[%clk 0:00:14]}  Qd8 {[%clk 0:00:59]} 29. Re1 {[%clk 0:00:14]}  Rb6 {[%clk 0:00:57]} 30. Re2 {[%clk 0:00:08]}  Qf8 {[%clk 0:00:56]} 31. Qxf8+ {[%clk 0:00:07]}  Rxf8 {[%clk 0:00:56]} 32. Rf3 {[%clk 0:00:07]}  Rfb8 {[%clk 0:00:53]} 33. Rf1 {[%clk 0:00:07]}  Kf7 {[%clk 0:00:51]} 34. Rfe1 {[%clk 0:00:07]}  Re8 {[%clk 0:00:46]} 35. Rc2 {[%clk 0:00:06]}  Rb3 {[%clk 0:00:46]} 36. Rd1 {[%clk 0:00:04]}  Nc8 {[%clk 0:00:45]} 37. Re2 {[%clk 0:00:04]}  Nd6 {[%clk 0:00:45]} 38. Bc2 {[%clk 0:00:04]}  Rh3 {[%clk 0:00:44]} 39. b3 {[%clk 0:00:04]}  h5 {[%clk 0:00:43]} 40. g5 {[%clk 0:00:04]}  Bg7 {[%clk 0:00:43]} 41. Rd3 {[%clk 0:00:04]}  Rxd3 {[%clk 0:00:39]} 42. Bxd3 {[%clk 0:00:05]}  Rb8 {[%clk 0:00:38]} 43. Rb2 {[%clk 0:00:05]}  Nf5 {[%clk 0:00:36]} 44. b4 {[%clk 0:00:05]}  cxb4 {[%clk 0:00:32]} 45. axb4 {[%clk 0:00:05]}  Ne3 {[%clk 0:00:32]} 46. b5 {[%clk 0:00:05]}  a5 {[%clk 0:00:31]} 47. b6 {[%clk 0:00:06]}  Bf8 {[%clk 0:00:31]} 48. b7 {[%clk 0:00:06]}  Bb4 {[%clk 0:00:31]} 49. Bxe3 {[%clk 0:00:03]}  dxe3 {[%clk 0:00:30]} 50. Kf1 {[%clk 0:00:03]}  Rxb7 {[%clk 0:00:30]} 51. Ke2 {[%clk 0:00:04]}  e5 {[%clk 0:00:24]} 52. fxe5 {[%clk 0:00:03]}  Ke6 {[%clk 0:00:24]} 53. Rb1 {[%clk 0:00:04]}  Kxe5 {[%clk 0:00:24]} 54. Kxe3 {[%clk 0:00:03]}  Rf7 {[%clk 0:00:20]} 55. Bxg6 {[%clk 0:00:03]}  Bc5+ {[%clk 0:00:20]} 56. Ke2 {[%clk 0:00:03]}  Rf2+ {[%clk 0:00:20]} 57. Ke1 {[%clk 0:00:03]}  Rxh2 {[%clk 0:00:20]} 58. Bd3 {[%clk 0:00:03]}  h4 {[%clk 0:00:19]} 59. g6 {[%clk 0:00:03]}  Rg2 {[%clk 0:00:19]} 60. Rb8 {[%clk 0:00:03]}  h3 {[%clk 0:00:19]} 61. Re8+ {[%clk 0:00:03]}  Kf6 {[%clk 0:00:18]} 62. Rh8 {[%clk 0:00:03]}  h2 {[%clk 0:00:18]} 63. Bf1 {[%clk 0:00:02]}  Ra2 {[%clk 0:00:16]} 64. Rh6 {[%clk 0:00:02]}  Kg7 {[%clk 0:00:15]} 65. Rh7+ {[%clk 0:00:03]}  Kxg6 {[%clk 0:00:16]} 66. Rh3 {[%clk 0:00:03]}  Bb4+ {[%clk 0:00:15]} 67. Kd1 {[%clk 0:00:04]}  Rf2 {[%clk 0:00:15]} 68. Bd3+ {[%clk 0:00:02]}  Kg5 {[%clk 0:00:15]} 69. Be4 {[%clk 0:00:03]}  a4 {[%clk 0:00:15]} 70. Rh7 {[%clk 0:00:02]}  a3 {[%clk 0:00:15]} 71. Ra7 {[%clk 0:00:02]}  a2 {[%clk 0:00:15]} 0-1


[Site "https://www.chess.com"]

[Event "Titled Tuesday Blitz December 14 2021"]
[White "Boskovic, Drasko"]
[Black "Shipov, Sergei"]
[WhiteFideId "927368"]
[BlackFideId "4113624"]
[WhiteElo "2388"]
[BlackElo "2737"]
[Result "1/2-1/2"]
[Round "05"]
[TimeControl "180+1"]
[Date "2021.12.15"]
[WhiteClock "0:00:06"]
[BlackClock "0:00:20"]

1. e4 {[%clk 0:02:58]}  e6 {[%clk 0:02:59]} 2. d4 {[%clk 0:02:58]}  d5 {[%clk 0:02:59]} 3. Nd2 {[%clk 0:02:59]}  Be7 {[%clk 0:02:59]} 4. Bd3 {[%clk 0:02:59]}  c5 {[%clk 0:02:59]} 5. dxc5 {[%clk 0:02:59]}  Nf6 {[%clk 0:02:59]} 6. exd5 {[%clk 0:02:58]}  Qxd5 {[%clk 0:02:58]} 7. Ngf3 {[%clk 0:02:59]}  Nbd7 {[%clk 0:02:58]} 8. O-O {[%clk 0:02:53]}  Nxc5 {[%clk 0:02:58]} 9. Bb5+ {[%clk 0:02:53]}  Bd7 {[%clk 0:02:57]} 10. Bxd7+ {[%clk 0:02:53]}  Ncxd7 {[%clk 0:02:50]} 11. Qe2 {[%clk 0:02:51]}  O-O {[%clk 0:02:49]} 12. c4 {[%clk 0:02:51]}  Qh5 {[%clk 0:02:42]} 13. b3 {[%clk 0:02:51]}  a6 {[%clk 0:02:41]} 14. Bb2 {[%clk 0:02:52]}  Rac8 {[%clk 0:02:38]} 15. Rad1 {[%clk 0:02:51]}  b5 {[%clk 0:02:37]} 16. h3 {[%clk 0:02:50]}  h6 {[%clk 0:02:34]} 17. Rfe1 {[%clk 0:02:50]}  Rfd8 {[%clk 0:02:33]} 18. Rc1 {[%clk 0:02:40]}  bxc4 {[%clk 0:02:22]} 19. Nxc4 {[%clk 0:02:39]}  Nd5 {[%clk 0:02:22]} 20. Nfe5 {[%clk 0:02:37]}  Qxe2 {[%clk 0:02:21]} 21. Rxe2 {[%clk 0:02:38]}  Nxe5 {[%clk 0:02:20]} 22. Bxe5 {[%clk 0:02:37]}  f6 {[%clk 0:02:14]} 23. Bg3 {[%clk 0:02:09]}  e5 {[%clk 0:02:12]} 24. Rd2 {[%clk 0:02:08]}  Bb4 {[%clk 0:02:02]} 25. Rdc2 {[%clk 0:02:06]}  Bf8 {[%clk 0:01:51]} 26. Ne3 {[%clk 0:02:03]}  Rxc2 {[%clk 0:01:50]} 27. Rxc2 {[%clk 0:02:04]}  Nb4 {[%clk 0:01:50]} 28. Re2 {[%clk 0:02:03]}  Kf7 {[%clk 0:01:48]} 29. f3 {[%clk 0:01:50]}  Bc5 {[%clk 0:01:45]} 30. Bf2 {[%clk 0:01:43]}  Nd3 {[%clk 0:01:45]} 31. Ng4 {[%clk 0:01:39]}  Nxf2 {[%clk 0:01:39]} 32. Nxf2 {[%clk 0:01:40]}  f5 {[%clk 0:01:34]} 33. Kf1 {[%clk 0:01:30]}  Kf6 {[%clk 0:01:33]} 34. Rc2 {[%clk 0:01:30]}  Rd5 {[%clk 0:01:30]} 35. Ke2 {[%clk 0:01:29]}  Ke6 {[%clk 0:01:23]} 36. Nd3 {[%clk 0:01:25]}  Kd6 {[%clk 0:01:11]} 37. Rc4 {[%clk 0:01:14]}  a5 {[%clk 0:00:59]} 38. g4 {[%clk 0:01:04]}  g6 {[%clk 0:00:59]} 39. gxf5 {[%clk 0:01:04]}  gxf5 {[%clk 0:00:57]} 40. Rh4 {[%clk 0:01:05]}  Kc6 {[%clk 0:00:37]} 41. Rxh6+ {[%clk 0:01:05]}  Bd6 {[%clk 0:00:37]} 42. Rh5 {[%clk 0:00:52]}  e4 {[%clk 0:00:37]} 43. fxe4 {[%clk 0:00:53]}  fxe4 {[%clk 0:00:38]} 44. Rxd5 {[%clk 0:00:54]}  Kxd5 {[%clk 0:00:38]} 45. Nf2 {[%clk 0:00:50]}  Kd4 {[%clk 0:00:38]} 46. h4 {[%clk 0:00:49]}  Bf4 {[%clk 0:00:28]} 47. h5 {[%clk 0:00:49]}  Kc3 {[%clk 0:00:29]} 48. Nxe4+ {[%clk 0:00:25]}  Kb2 {[%clk 0:00:29]} 49. Kd3 {[%clk 0:00:26]}  Kxa2 {[%clk 0:00:27]} 50. Kc4 {[%clk 0:00:27]}  Ka3 {[%clk 0:00:27]} 51. Nc3 {[%clk 0:00:26]}  Bh6 {[%clk 0:00:24]} 52. Nb5+ {[%clk 0:00:26]}  Kb2 {[%clk 0:00:25]} 53. Nd4 {[%clk 0:00:24]}  Ka3 {[%clk 0:00:24]} 54. Nf5 {[%clk 0:00:24]}  Bg5 {[%clk 0:00:22]} 55. h6 {[%clk 0:00:16]}  Bxh6 {[%clk 0:00:21]} 56. Nxh6 {[%clk 0:00:17]}  a4 {[%clk 0:00:22]} 57. b4 {[%clk 0:00:14]}  Kb2 {[%clk 0:00:22]} 58. b5 {[%clk 0:00:15]}  a3 {[%clk 0:00:23]} 59. b6 {[%clk 0:00:16]}  a2 {[%clk 0:00:23]} 60. b7 {[%clk 0:00:17]}  a1=Q {[%clk 0:00:24]} 61. b8=Q+ {[%clk 0:00:18]}  Kc1 {[%clk 0:00:19]} 62. Qf4+ {[%clk 0:00:17]}  Kb1 {[%clk 0:00:19]} 63. Qe4+ {[%clk 0:00:16]}  Kb2 {[%clk 0:00:19]} 64. Qd4+ {[%clk 0:00:15]}  Ka2 {[%clk 0:00:18]} 65. Qa7+ {[%clk 0:00:13]}  Kb1 {[%clk 0:00:19]} 66. Qg1+ {[%clk 0:00:12]}  Ka2 {[%clk 0:00:19]} 67. Qa7+ {[%clk 0:00:05]}  Kb1 {[%clk 0:00:19]} 68. Qb6+ {[%clk 0:00:06]}  Qb2 {[%clk 0:00:19]} 69. Qg1+ {[%clk 0:00:06]}  Qc1+ {[%clk 0:00:19]} 70. Qxc1+ {[%clk 0:00:06]}  Kxc1 {[%clk 0:00:20]} 1/2-1/2


[Site "https://www.chess.com"]

[Event "Titled Tuesday Blitz December 14 2021"]
[White "Csonka, Balazs"]
[Black "Keymer, Vincent"]
[WhiteFideId "742910"]
[BlackFideId "12940690"]
[WhiteElo "2404"]
[BlackElo "2557"]
[Result "0-1"]
[Round "05"]
[TimeControl "180+1"]
[Date "2021.12.14"]
[WhiteClock "0:00:02"]
[BlackClock "0:00:07"]

1. e4 {[%clk 0:02:57]}  c6 {[%clk 0:02:59]} 2. Nc3 {[%clk 0:02:54]}  d5 {[%clk 0:03:00]} 3. Nf3 {[%clk 0:02:54]}  dxe4 {[%clk 0:03:00]} 4. Nxe4 {[%clk 0:02:54]}  Nf6 {[%clk 0:03:01]} 5. Qe2 {[%clk 0:02:52]}  Nxe4 {[%clk 0:03:01]} 6. Qxe4 {[%clk 0:02:53]}  Nd7 {[%clk 0:03:01]} 7. Bc4 {[%clk 0:02:52]}  Nf6 {[%clk 0:03:02]} 8. Ne5 {[%clk 0:02:52]}  e6 {[%clk 0:03:03]} 9. Qe2 {[%clk 0:02:52]}  b5 {[%clk 0:03:03]} 10. Bd3 {[%clk 0:02:52]}  Qc7 {[%clk 0:03:03]} 11. b3 {[%clk 0:02:52]}  Bd6 {[%clk 0:03:01]} 12. Bb2 {[%clk 0:02:52]}  Nd5 {[%clk 0:03:02]} 13. g3 {[%clk 0:02:12]}  Nb4 {[%clk 0:03:00]} 14. O-O {[%clk 0:01:55]}  Nxd3 {[%clk 0:02:54]} 15. cxd3 {[%clk 0:01:49]}  O-O {[%clk 0:02:38]} 16. Rac1 {[%clk 0:01:37]}  Bb7 {[%clk 0:02:37]} 17. d4 {[%clk 0:01:18]}  a5 {[%clk 0:02:26]} 18. Rc2 {[%clk 0:01:06]}  Rac8 {[%clk 0:01:48]} 19. Rfc1 {[%clk 0:00:58]}  c5 {[%clk 0:01:31]} 20. dxc5 {[%clk 0:00:46]}  Bxe5 {[%clk 0:01:30]} 21. Qxe5 {[%clk 0:00:45]}  Qxe5 {[%clk 0:01:24]} 22. Bxe5 {[%clk 0:00:45]}  Bc6 {[%clk 0:01:18]} 23. d4 {[%clk 0:00:39]}  h5 {[%clk 0:01:14]} 24. h4 {[%clk 0:00:34]}  f6 {[%clk 0:01:11]} 25. Bd6 {[%clk 0:00:34]}  Rfe8 {[%clk 0:01:11]} 26. Re1 {[%clk 0:00:33]}  Kf7 {[%clk 0:01:11]} 27. Rc3 {[%clk 0:00:31]}  Bd5 {[%clk 0:01:08]} 28. f3 {[%clk 0:00:25]}  Rc6 {[%clk 0:01:05]} 29. Kf2 {[%clk 0:00:22]}  Rec8 {[%clk 0:01:04]} 30. Rce3 {[%clk 0:00:18]}  Ra8 {[%clk 0:01:01]} 31. a3 {[%clk 0:00:17]}  Ra7 {[%clk 0:00:58]} 32. Ke2 {[%clk 0:00:16]}  Rd7 {[%clk 0:00:53]} 33. Kd2 {[%clk 0:00:15]}  Rd8 {[%clk 0:00:52]} 34. R1e2 {[%clk 0:00:14]}  Rg8 {[%clk 0:00:52]} 35. Kc2 {[%clk 0:00:12]}  Ra8 {[%clk 0:00:48]} 36. Kb2 {[%clk 0:00:12]}  Ra7 {[%clk 0:00:48]} 37. Re1 {[%clk 0:00:08]}  Rb7 {[%clk 0:00:46]} 38. Rg1 {[%clk 0:00:08]}  a4 {[%clk 0:00:40]} 39. b4 {[%clk 0:00:08]}  Ra7 {[%clk 0:00:39]} 40. Kc3 {[%clk 0:00:07]}  Ra8 {[%clk 0:00:39]} 41. Kd2 {[%clk 0:00:08]}  Rg8 {[%clk 0:00:39]} 42. Ke2 {[%clk 0:00:07]}  Rcc8 {[%clk 0:00:40]} 43. Kf2 {[%clk 0:00:07]}  Rh8 {[%clk 0:00:39]} 44. Ree1 {[%clk 0:00:07]}  Rh6 {[%clk 0:00:38]} 45. Re3 {[%clk 0:00:07]}  Rh7 {[%clk 0:00:34]} 46. Bf4 {[%clk 0:00:07]}  Rhh8 {[%clk 0:00:34]} 47. Bd6 {[%clk 0:00:05]}  Rhg8 {[%clk 0:00:34]} 48. Ree1 {[%clk 0:00:05]}  g5 {[%clk 0:00:30]} 49. hxg5 {[%clk 0:00:04]}  Rxg5 {[%clk 0:00:31]} 50. Bf4 {[%clk 0:00:04]}  Rf5 {[%clk 0:00:29]} 51. Rh1 {[%clk 0:00:04]}  Rh8 {[%clk 0:00:28]} 52. Rh4 {[%clk 0:00:04]}  Rh7 {[%clk 0:00:27]} 53. Reh1 {[%clk 0:00:04]}  e5 {[%clk 0:00:25]} 54. dxe5 {[%clk 0:00:02]}  fxe5 {[%clk 0:00:26]} 55. Bc1 {[%clk 0:00:01]}  Rxf3+ {[%clk 0:00:26]} 56. Ke1 {[%clk 0:00:02]}  Rxg3 {[%clk 0:00:20]} 57. Rxh5 {[%clk 0:00:02]}  Rxh5 {[%clk 0:00:18]} 58. Rxh5 {[%clk 0:00:02]}  Rg1+ {[%clk 0:00:18]} 59. Kd2 {[%clk 0:00:03]}  Ke6 {[%clk 0:00:19]} 60. Bb2 {[%clk 0:00:03]}  Rg2+ {[%clk 0:00:18]} 61. Kc1 {[%clk 0:00:03]}  Re2 {[%clk 0:00:18]} 62. Rh6+ {[%clk 0:00:03]}  Kf5 {[%clk 0:00:18]} 63. c6 {[%clk 0:00:03]}  Be4 {[%clk 0:00:09]} 64. c7 {[%clk 0:00:02]}  Rc2+ {[%clk 0:00:09]} 65. Kd1 {[%clk 0:00:03]}  Rxc7 {[%clk 0:00:08]} 66. Rh5+ {[%clk 0:00:03]}  Kg4 {[%clk 0:00:09]} 67. Rxe5 {[%clk 0:00:03]}  Bd3 {[%clk 0:00:08]} 68. Rd5 {[%clk 0:00:02]}  Bc4 {[%clk 0:00:08]} 69. Rd4+ {[%clk 0:00:02]}  Kf3 {[%clk 0:00:09]} 70. Kd2 {[%clk 0:00:03]}  Rh7 {[%clk 0:00:09]} 71. Rd8 {[%clk 0:00:02]}  Rh1 {[%clk 0:00:07]} 72. Bc3 {[%clk 0:00:02]}  Rh2+ {[%clk 0:00:07]} 73. Kc1 {[%clk 0:00:02]}  Ke4 {[%clk 0:00:07]} 74. Bb2 {[%clk 0:00:02]}  Bb3 {[%clk 0:00:07]} 75. Re8+ {[%clk 0:00:01]}  Kd5 {[%clk 0:00:07]} 76. Rd8+ {[%clk 0:00:01]}  Kc6 {[%clk 0:00:07]} 77. Rc8+ {[%clk 0:00:01]}  Kb7 {[%clk 0:00:07]} 78. Rc3 {[%clk 0:00:02]}  Rh1+ {[%clk 0:00:07]} 79. Kd2 {[%clk 0:00:02]}  Rh5 {[%clk 0:00:05]} 80. Kc1 {[%clk 0:00:02]}  Kb6 {[%clk 0:00:05]} 81. Rc5 {[%clk 0:00:02]}  Rh1+ {[%clk 0:00:05]} 82. Kd2 {[%clk 0:00:03]}  Rh2+ {[%clk 0:00:05]} 83. Kc1 {[%clk 0:00:03]}  Bc4 {[%clk 0:00:06]} 84. Bd4 {[%clk 0:00:03]}  Kb7 {[%clk 0:00:05]} 85. Rc7+ {[%clk 0:00:02]}  Kb8 {[%clk 0:00:02]} 86. Rxc4 {[%clk 0:00:02]}  Rh1+ {[%clk 0:00:02]} 87. Kc2 {[%clk 0:00:02]}  bxc4 {[%clk 0:00:03]} 88. Kc3 {[%clk 0:00:02]}  Rh3+ {[%clk 0:00:03]} 89. Kxc4 {[%clk 0:00:02]}  Rxa3 {[%clk 0:00:04]} 90. b5 {[%clk 0:00:02]}  Rb3 {[%clk 0:00:04]} 91. Bc5 {[%clk 0:00:01]}  Kb7 {[%clk 0:00:05]} 92. Bb4 {[%clk 0:00:02]}  Kb6 {[%clk 0:00:04]} 93. Bc5+ {[%clk 0:00:02]}  Kc7 {[%clk 0:00:05]} 94. Bb4 {[%clk 0:00:02]}  Kb7 {[%clk 0:00:05]} 95. Bc5 {[%clk 0:00:02]}  Rh3 {[%clk 0:00:05]} 96. Kb4 {[%clk 0:00:02]}  a3 {[%clk 0:00:06]} 97. Bd4 {[%clk 0:00:01]}  a2 {[%clk 0:00:06]} 98. Ka4 {[%clk 0:00:01]}  Rh1 {[%clk 0:00:06]} 99. Kb3 {[%clk 0:00:01]}  a1=Q {[%clk 0:00:06]} 100. Bxa1 {[%clk 0:00:02]}  Rxa1 {[%clk 0:00:07]} 0-1


[Site "https://www.chess.com"]

[Event "Titled Tuesday Blitz December 14 2021"]
[White "Demidov, Mikhail"]
[Black "Ghimpu, Samuel-Timotei"]
[WhiteFideId "4197143"]
[BlackFideId "1238175"]
[WhiteElo "2592"]
[BlackElo "2012"]
[Result "0-1"]
[Round "05"]
[TimeControl "180+1"]
[Date "2021.12.14"]
[WhiteClock "0:00:05"]
[BlackClock "0:00:03"]

1. Nf3 {[%clk 0:03:00]}  Nf6 {[%clk 0:02:52]} 2. g3 {[%clk 0:03:01]}  g6 {[%clk 0:02:53]} 3. b3 {[%clk 0:03:01]}  Bg7 {[%clk 0:02:53]} 4. Bb2 {[%clk 0:03:01]}  O-O {[%clk 0:02:54]} 5. Bg2 {[%clk 0:03:02]}  c5 {[%clk 0:02:49]} 6. c4 {[%clk 0:03:01]}  Nc6 {[%clk 0:02:34]} 7. O-O {[%clk 0:03:01]}  b6 {[%clk 0:02:29]} 8. d4 {[%clk 0:02:59]}  cxd4 {[%clk 0:02:27]} 9. Nxd4 {[%clk 0:03:00]}  Bb7 {[%clk 0:02:27]} 10. Nc3 {[%clk 0:03:00]}  Qc8 {[%clk 0:02:25]} 11. Nc2 {[%clk 0:02:59]}  d6 {[%clk 0:02:04]} 12. Ne3 {[%clk 0:02:59]}  Ne5 {[%clk 0:02:01]} 13. Rc1 {[%clk 0:02:37]}  Bxg2 {[%clk 0:02:00]} 14. Kxg2 {[%clk 0:02:37]}  h5 {[%clk 0:01:55]} 15. Ned5 {[%clk 0:02:30]}  Re8 {[%clk 0:01:54]} 16. Nxf6+ {[%clk 0:02:27]}  Bxf6 {[%clk 0:01:53]} 17. Nd5 {[%clk 0:02:28]}  Bg7 {[%clk 0:01:53]} 18. h3 {[%clk 0:02:26]}  Qb7 {[%clk 0:01:46]} 19. f3 {[%clk 0:02:22]}  e6 {[%clk 0:01:25]} 20. Nc3 {[%clk 0:02:16]}  Rad8 {[%clk 0:01:23]} 21. Qd2 {[%clk 0:02:14]}  a6 {[%clk 0:00:58]} 22. Rfd1 {[%clk 0:02:06]}  Kh7 {[%clk 0:00:57]} 23. Ne4 {[%clk 0:02:04]}  d5 {[%clk 0:00:44]} 24. cxd5 {[%clk 0:02:03]}  exd5 {[%clk 0:00:38]} 25. Ng5+ {[%clk 0:01:41]}  Kg8 {[%clk 0:00:38]} 26. h4 {[%clk 0:01:38]}  d4 {[%clk 0:00:36]} 27. Nh3 {[%clk 0:01:16]}  Ng4 {[%clk 0:00:24]} 28. Re1 {[%clk 0:01:09]}  Ne3+ {[%clk 0:00:19]} 29. Kh2 {[%clk 0:01:06]}  Nf5 {[%clk 0:00:18]} 30. Ng5 {[%clk 0:00:50]}  Qb8 {[%clk 0:00:11]} 31. f4 {[%clk 0:00:44]}  Re3 {[%clk 0:00:11]} 32. Rg1 {[%clk 0:00:44]}  d3 {[%clk 0:00:08]} 33. exd3 {[%clk 0:00:15]}  Rexd3 {[%clk 0:00:09]} 34. Qb4 {[%clk 0:00:09]}  Rd2+ {[%clk 0:00:09]} 35. Rg2 {[%clk 0:00:09]}  Rxg2+ {[%clk 0:00:08]} 36. Kxg2 {[%clk 0:00:10]}  Bxb2 {[%clk 0:00:07]} 37. Re1 {[%clk 0:00:08]}  Qb7+ {[%clk 0:00:05]} 38. Kh2 {[%clk 0:00:09]}  Bf6 {[%clk 0:00:04]} 39. Ne4 {[%clk 0:00:08]}  Qc6 {[%clk 0:00:04]} 40. Re2 {[%clk 0:00:08]}  Kg7 {[%clk 0:00:03]} 41. a4 {[%clk 0:00:06]}  Rd4 {[%clk 0:00:03]} 42. Qe1 {[%clk 0:00:06]}  Rd3 {[%clk 0:00:02]} 43. Rg2 {[%clk 0:00:05]}  Nd4 {[%clk 0:00:03]} 44. Nxf6 {[%clk 0:00:05]}  Nf3+ {[%clk 0:00:03]} 45. Kh3 {[%clk 0:00:05]}  Nxe1 {[%clk 0:00:04]} 46. Nxh5+ {[%clk 0:00:04]}  gxh5 {[%clk 0:00:04]} 47. f5 {[%clk 0:00:05]}  Qxg2# {[%clk 0:00:03]} 0-1


[Site "https://www.chess.com"]

[Event "Titled Tuesday Blitz December 14 2021"]
[White "Durarbayli, Vasif"]
[Black "Nikologorskiy, Konstantin"]
[WhiteFideId "13402935"]
[BlackFideId "24111708"]
[WhiteElo "2599"]
[BlackElo "2346"]
[Result "1-0"]
[Round "05"]
[TimeControl "180+1"]
[Date "2021.12.14"]
[WhiteClock "0:00:05"]
[BlackClock "0:00:07"]

1. e4 {[%clk 0:03:00]}  c5 {[%clk 0:02:57]} 2. b3 {[%clk 0:02:57]}  Nc6 {[%clk 0:02:54]} 3. Bb2 {[%clk 0:02:56]}  d6 {[%clk 0:02:53]} 4. Bb5 {[%clk 0:02:56]}  Nf6 {[%clk 0:02:53]} 5. e5 {[%clk 0:02:41]}  dxe5 {[%clk 0:02:51]} 6. Bxc6+ {[%clk 0:02:40]}  bxc6 {[%clk 0:02:52]} 7. Bxe5 {[%clk 0:02:39]}  Ba6 {[%clk 0:02:23]} 8. d3 {[%clk 0:02:28]}  Nd5 {[%clk 0:02:07]} 9. Ne2 {[%clk 0:02:13]}  f6 {[%clk 0:01:56]} 10. Bb2 {[%clk 0:02:13]}  e5 {[%clk 0:01:57]} 11. O-O {[%clk 0:02:13]}  Bd6 {[%clk 0:01:54]} 12. c4 {[%clk 0:01:38]}  Nc7 {[%clk 0:01:49]} 13. f4 {[%clk 0:01:36]}  exf4 {[%clk 0:01:49]} 14. Nxf4 {[%clk 0:01:36]}  O-O {[%clk 0:01:50]} 15. Nc3 {[%clk 0:01:22]}  Be5 {[%clk 0:01:43]} 16. Kh1 {[%clk 0:01:20]}  Bc8 {[%clk 0:01:39]} 17. Na4 {[%clk 0:01:17]}  Qd6 {[%clk 0:01:33]} 18. Qf3 {[%clk 0:00:46]}  Bf5 {[%clk 0:01:26]} 19. Rad1 {[%clk 0:00:34]}  Bxb2 {[%clk 0:01:14]} 20. Nxb2 {[%clk 0:00:32]}  Ne6 {[%clk 0:01:11]} 21. Nxe6 {[%clk 0:00:23]}  Bxe6 {[%clk 0:01:12]} 22. Na4 {[%clk 0:00:23]}  Rad8 {[%clk 0:01:06]} 23. Qf2 {[%clk 0:00:23]}  Bg4 {[%clk 0:01:05]} 24. Rd2 {[%clk 0:00:22]}  Rfe8 {[%clk 0:00:49]} 25. Nxc5 {[%clk 0:00:20]}  Qe5 {[%clk 0:00:46]} 26. h3 {[%clk 0:00:20]}  Bc8 {[%clk 0:00:45]} 27. d4 {[%clk 0:00:16]}  Qh5 {[%clk 0:00:45]} 28. Kh2 {[%clk 0:00:13]}  Re7 {[%clk 0:00:37]} 29. Re1 {[%clk 0:00:13]}  Rde8 {[%clk 0:00:30]} 30. Rxe7 {[%clk 0:00:13]}  Rxe7 {[%clk 0:00:31]} 31. Qf3 {[%clk 0:00:11]}  Qe8 {[%clk 0:00:30]} 32. Rf2 {[%clk 0:00:09]}  Qd8 {[%clk 0:00:24]} 33. Qf4 {[%clk 0:00:10]}  Re1 {[%clk 0:00:23]} 34. Rd2 {[%clk 0:00:10]}  Kf7 {[%clk 0:00:20]} 35. d5 {[%clk 0:00:10]}  cxd5 {[%clk 0:00:19]} 36. cxd5 {[%clk 0:00:11]}  Qb6 {[%clk 0:00:20]} 37. b4 {[%clk 0:00:10]}  a5 {[%clk 0:00:20]} 38. a3 {[%clk 0:00:09]}  axb4 {[%clk 0:00:20]} 39. axb4 {[%clk 0:00:10]}  Rb1 {[%clk 0:00:19]} 40. Rd4 {[%clk 0:00:10]}  Qb5 {[%clk 0:00:18]} 41. d6 {[%clk 0:00:09]}  Bd7 {[%clk 0:00:17]} 42. Qe4 {[%clk 0:00:09]}  Qf1 {[%clk 0:00:14]} 43. Nxd7 {[%clk 0:00:05]}  Qg1+ {[%clk 0:00:14]} 44. Kg3 {[%clk 0:00:05]}  Rb3+ {[%clk 0:00:14]} 45. Rd3 {[%clk 0:00:06]}  Rb2 {[%clk 0:00:09]} 46. Nc5 {[%clk 0:00:03]}  Qf2+ {[%clk 0:00:08]} 47. Kh2 {[%clk 0:00:02]}  Rb1 {[%clk 0:00:08]} 48. Qe7+ {[%clk 0:00:03]}  Kg6 {[%clk 0:00:08]} 49. Qe4+ {[%clk 0:00:03]}  Kf7 {[%clk 0:00:09]} 50. Qd5+ {[%clk 0:00:04]}  Kg6 {[%clk 0:00:09]} 51. Qd4 {[%clk 0:00:04]}  Qf1 {[%clk 0:00:07]} 52. Rg3+ {[%clk 0:00:04]}  Kf7 {[%clk 0:00:06]} 53. Qd5+ {[%clk 0:00:05]}  Kf8 {[%clk 0:00:06]} 54. Qa8+ {[%clk 0:00:04]}  Kf7 {[%clk 0:00:07]} 55. Qb7+ {[%clk 0:00:05]}  Ke8 {[%clk 0:00:07]} 56. Qe7# {[%clk 0:00:05]} 1-0


[Site "https://www.chess.com"]